bitfinex/quotes_ETHUSD_20241024
["timestamp","ask_amount","ask_price","bid_price","bid_amount"]
[1729728002802,0.8034,2524.5,2524.0,1.80586274]
[1729728003428,0.8034,2524.5,2524.3,1.80586274]
[1729728003634,0.7784,2525.0,2524.4,1.80586274]
[1729728003935,0.37884,2524.9,2524.3,2.59416274]
[1729728004292,1.80586274,2524.8,2524.1,0.0540747]
[1729728004645,0.01,2524.6,2524.2,1.80586274]
[1729728004926,0.02,2524.6,2524.2,1.80586274]
[1729728005086,0.02,2524.6,2524.1,1.80586274]
[1729728005299,0.7984,2524.6,2523.8,0.55]
[1729728005499,0.7984,2524.6,2524.1,1.80586274]
[1729728005804,0.01,2524.3,2524.1,1.80586274]
[1729728007036,0.01,2524.3,2523.8,0.55]
[1729728007237,0.01,2524.3,2524.1,1.80586274]
[1729728007450,0.01,2524.3,2524.1,2.59416274]
[1729728010297,0.01,2524.3,2524.0,0.0539997]
[1729728010457,0.01,2524.2,2523.9,1.85986244]
[1729728011349,0.01,2524.3,2524.1,1.80586274]
[1729728011554,0.01,2524.3,2524.1,2.61746274]
[1729728013254,0.01,2524.3,2524.1,2.67041412]
[1729728013703,0.02,2524.6,2524.2,0.07923291]
[1729728014014,0.02,2524.6,2524.3,1.80586274]
[1729728014703,0.01,2524.6,2524.4,0.8116]
[1729728014998,0.01,2524.6,2524.5,1.80586274]
[1729728015182,0.01,2524.6,2524.4,0.8116]
[1729728015353,0.01,2524.6,2524.4,2.61746274]
[1729728016399,0.02,2524.6,2524.2,0.86455138]
[1729728016584,0.02,2524.6,2524.2,2.67041412]
[1729728016914,0.02,2524.6,2524.2,2.67044142]
[1729728017193,0.02,2524.6,2524.2,2.67044295]
[1729728017688,0.02,2524.6,2524.3,0.03510902]
[1729728018193,0.02,2524.6,2524.3,1.84097176]
[1729728018963,0.02,2524.6,2524.3,0.03510902]
[1729728019165,0.01,2524.4,2524.3,0.03510902]
[1729728021054,0.01,2524.4,2524.3,1.84097176]
[1729728021254,0.02,2524.6,2524.3,1.84097176]
[1729728021503,0.02,2524.6,2524.5,1.80586274]
[1729728021656,0.02,2524.6,2524.4,2.61746274]
[1729728022678,8.92471176,2529.5,2524.4,0.8116]
[1729728022992,1.80586274,2525.2,2524.5,1.84088116]
[1729728023194,1.80586274,2525.3,2524.6,1.80586274]
[1729728023492,1.80586274,2525.2,2524.5,1.84088116]
[1729728023696,1.80586274,2525.2,2524.6,0.01]
[1729728023996,1.80586274,2525.2,2524.6,1.81586274]
[1729728024297,1.80586274,2525.2,2524.6,0.01]
[1729728024758,1.80586274,2525.2,2524.6,1.81586274]
[1729728025599,2.99888256,2526.1,2524.6,1.81586274]
[1729728025600,0.42236399,2786.8,2524.6,1.81586274]
[1729728025802,0.7904,2525.5,2524.6,1.81586274]
[1729728025960,0.7904,2525.5,2525.0,1.80586274]
[1729728026305,0.7904,2525.5,2525.1,1.81586274]
[1729728027092,0.7904,2525.5,2525.1,0.01]
[1729728027301,0.7904,2525.5,2525.1,0.27043627]
[1729728028260,1.80586274,2525.4,2525.0,0.01]
[1729728028504,2.59626274,2525.5,2525.0,0.01]
[1729728029201,1.80586274,2525.4,2524.9,0.7785]
[1729728029863,0.7904,2525.3,2524.8,0.02]
[1729728030059,0.7904,2525.3,2524.8,0.28043627]
[1729728030484,3.96021,2525.2,2524.8,2.08629901]
[1729728030700,1.80586274,2525.1,2524.8,0.26043627]
[1729728030896,1.80586274,2525.1,2524.6,0.01]
[1729728031095,0.7904,2525.0,2524.6,0.01]
[1729728032460,3.96079,2524.8,2524.6,0.01]
[1729728032705,3.96079,2524.8,2524.5,0.7885]
[1729728032872,3.96079,2524.8,2524.5,2.59436274]
[1729728033070,3.96079,2524.8,2524.5,1.84121927]
[1729728033273,3.96079,2524.8,2524.5,1.06271927]
[1729728033495,3.96056,2524.9,2524.5,1.06271927]
[1729728033896,7.92122,2524.9,2524.5,1.06271927]
[1729728034100,3.96083,2524.8,2524.5,0.01]
[1729728034802,3.96091,2524.7,2524.5,0.01]
[1729728035362,3.96091,2524.7,2524.4,1.81586274]
[1729728035881,7.92162,2524.8,2524.4,1.81586274]
[1729728036266,7.92162,2524.8,2524.5,1.80586274]
[1729728036468,3.96088,2524.7,2524.5,1.80586274]
[1729728036684,3.96079,2524.8,2524.3,0.01]
[1729728036685,3.96102,2524.6,2524.3,0.01]
[1729728036914,3.96125,2524.5,2524.2,3.01752863]
[1729728037296,4.75142,2524.6,2524.2,2.22902863]
[1729728037297,3.96142,2524.4,2524.2,2.22902863]
[1729728037630,7.92286,2524.4,2524.2,2.22902863]
[1729728037826,3.96142,2524.4,2524.2,2.22902863]
[1729728039398,4.75189,2524.3,2524.0,0.01]
[1729728039710,4.75189,2524.3,2524.0,1.81586274]
[1729728039913,8.71351,2524.3,2524.0,1.81586274]
[1729728040234,4.75189,2524.3,2524.0,1.81586274]
[1729728040466,4.75189,2524.3,2524.1,1.80586274]
[1729728040764,3.96165,2524.2,2524.0,1.81586274]
[1729728041060,8.71347,2524.3,2524.0,1.81586274]
[1729728041357,4.75189,2524.3,2524.0,1.81586274]
[1729728041751,3.96175,2524.2,2524.0,0.01]
[1729728041952,3.96175,2524.2,2524.0,1.81586274]
[1729728042148,3.96175,2524.2,2524.0,0.01]
[1729728042980,3.96175,2524.2,2524.0,1.81586274]
[1729728043136,4.75189,2524.3,2524.0,1.81586274]
[1729728043337,4.75189,2524.3,2524.1,1.80586274]
[1729728043558,3.96149,2524.3,2524.1,1.80586274]
[1729728044449,4.75168,2524.5,2523.9,0.7885]
[1729728044450,3.9618,2524.1,2523.9,0.7885]
[1729728044630,3.9618,2524.1,2523.9,0.01]
[1729728044835,3.9618,2524.1,2523.8,0.01]
[1729728044836,7.92376,2524.1,2523.8,0.01]
[1729728045077,7.92376,2524.1,2523.8,1.81586274]
[1729728045407,3.9618,2524.1,2523.9,1.80586274]
[1729728045880,3.9618,2524.1,2523.8,1.80586274]
[1729728046078,3.9618,2524.1,2523.7,1.81586274]
[1729728046079,3.96204,2524.0,2523.7,1.81586274]
[1729728046477,3.96217,2523.9,2523.7,1.81586274]
[1729728047063,3.96217,2523.9,2523.7,0.01]
[1729728047251,3.96204,2524.0,2523.7,1.81586274]
[1729728047449,7.92412,2524.0,2523.7,1.81586274]
[1729728047675,3.96223,2523.9,2523.7,1.81586274]
[1729728048781,3.96197,2524.0,2523.7,1.81586274]
[1729728050552,3.96197,2524.0,2523.8,1.80586274]
[1729728051153,3.96197,2524.0,2523.7,1.81586274]
[1729728051489,3.96214,2523.9,2523.7,1.81586274]
[1729728051708,3.96197,2524.0,2523.7,1.81586274]
[1729728053213,3.96219,2523.9,2523.7,1.81586274]
[1729728053410,3.96197,2524.0,2523.7,1.81586274]
[1729728054493,3.96197,2524.0,2523.8,1.80586274]
[1729728054866,3.96175,2524.2,2523.7,0.01]
[1729728054867,3.96173,2524.2,2523.9,3.44066274]
[1729728055081,3.96173,2524.2,2524.1,1.80586274]
[1729728055281,3.96173,2524.2,2524.0,1.80586274]
[1729728055708,3.96173,2524.2,2523.9,3.44066274]
[1729728056012,3.96173,2524.2,2524.0,1.80586274]
[1729728056939,3.96184,2524.1,2523.9,3.44066274]
[1729728058448,3.9618,2524.1,2523.9,1.6348]
[1729728059273,3.9618,2524.1,2523.9,3.44066274]
[1729728059570,3.9618,2524.1,2523.9,1.6348]
[1729728060165,3.9618,2524.1,2523.9,3.44066274]
[1729728060339,3.96196,2524.0,2523.9,3.44066274]
[1729728060563,1.6042,2524.6,2524.0,0.01]
[1729728060761,3.96149,2524.3,2524.1,1.80586274]
[1729728060961,3.96141,2524.4,2524.1,1.80586274]
[1729728061536,7.92285,2524.4,2524.0,1.82586274]
[1729728061740,3.96141,2524.4,2524.1,1.80586274]
[1729728061937,3.96149,2524.3,2524.1,1.80586274]
[1729728062484,3.96149,2524.3,2524.0,0.02]
[1729728062663,3.96149,2524.3,2524.1,1.80586274]
[1729728063039,3.96149,2524.3,2524.0,2.07368295]
[1729728063246,3.96149,2524.3,2524.0,0.02]
[1729728063582,3.96149,2524.3,2524.0,1.82586274]
[1729728065976,3.96149,2524.3,2524.1,1.80586274]
[1729728066148,3.96149,2524.3,2524.0,1.82586274]
[1729728066351,3.96167,2524.2,2524.0,1.81586274]
[1729728066561,3.96167,2524.2,2524.0,0.01]
[1729728066832,7.92313,2524.3,2524.0,0.02]
[1729728066977,3.96165,2524.2,2524.0,1.81586274]
[1729728067177,3.96165,2524.2,2524.0,0.02]
[1729728067372,3.96165,2524.2,2524.1,0.24782581]
[1729728067770,3.96198,2524.0,2523.8,0.02]
[1729728067975,3.96198,2524.0,2523.9,0.2478379]
[1729728068690,3.96198,2524.0,2523.9,2.05370064]
[1729728069266,3.96198,2524.0,2523.9,0.2478379]
[1729728069653,4.75436,2524.0,2523.9,0.2478379]
[1729728069854,4.75436,2524.0,2523.4,2.22916279]
[1729728069855,3.96275,2523.5,2523.4,0.05290509]
[1729728070079,3.96275,2523.5,2523.3,1.6646]
[1729728070290,3.96275,2523.5,2523.4,0.24788773]
[1729728070498,3.96275,2523.5,2523.2,0.01]
[1729728070751,3.9629,2523.4,2523.1,3.48046274]
[1729728071053,3.9629,2523.4,2523.2,0.24790539]
[1729728071346,3.96314,2523.3,2522.9,3.53343681]
[1729728071511,3.96324,2523.2,2523.0,0.25791816]
[1729728071705,3.96324,2523.2,2522.9,3.48046274]
[1729728071706,3.96324,2523.2,2522.9,0.01]
[1729728072348,3.96341,2523.1,2522.8,1.80586274]
[1729728072733,3.96341,2523.1,2522.7,1.6746]
[1729728073074,3.96337,2523.1,2522.8,2.05380855]
[1729728073288,3.96337,2523.1,2522.8,1.80586274]
[1729728074052,3.96337,2523.1,2522.9,0.03542975]
[1729728074409,3.96353,2523.0,2522.9,0.03542975]
[1729728074608,5.58443,2523.0,2522.9,0.03542975]
[1729728074811,6.71979627,2523.0,2522.9,0.03542975]
[1729728078047,2.75626627,2523.0,2522.5,3.48046274]
[1729728078278,7.92786,2522.8,2522.6,0.03611332]
[1729728078440,3.964,2522.7,2522.6,0.03611332]
[1729728079483,3.964,2522.7,2522.6,0.00781117]
[1729728081360,5.5849,2522.7,2522.6,0.00781117]
[1729728081996,3.96364,2523.0,2522.6,1.81367391]
[1729728082140,1.6209,2523.1,2522.6,4.89775584]
[1729728082347,3.96302,2523.4,2522.9,5.62827]
[1729728082576,3.96276,2523.5,2523.0,3.97352]
[1729728082892,3.96276,2523.5,2523.3,1.80586274]
[1729728083059,3.96276,2523.5,2523.2,1.80586274]
[1729728084489,3.96276,2523.5,2523.0,3.98344]
[1729728084677,7.92565,2523.5,2523.1,0.57273059]
[1729728085150,3.96269,2523.6,2523.2,0.01]
[1729728085488,3.96256,2523.7,2523.3,1.5529]
[1729728088026,3.96254,2523.7,2523.3,1.5529]
[1729728088823,3.9626,2523.6,2523.3,1.5529]
[1729728089018,3.88225754,2523.6,2523.3,1.5529]
[1729728089519,3.96275,2523.5,2523.3,1.5529]
[1729728090382,3.96275,2523.5,2523.0,1.5629]
[1729728090582,3.96315,2523.3,2523.1,0.01]
[1729728090812,3.96315,2523.3,2523.0,1.5629]
[1729728090998,7.92631,2523.3,2523.0,1.5629]
[1729728091210,3.96315,2523.3,2523.0,1.5629]
[1729728092499,3.96322,2523.2,2523.0,1.5629]
[1729728092722,3.9634,2523.1,2522.8,1.5629]
[1729728092883,3.9634,2523.1,2522.7,0.01]
[1729728093085,3.9634,2523.1,2522.8,0.01]
[1729728093521,3.96322,2523.2,2522.8,0.01]
[1729728093682,3.96345,2523.1,2522.8,0.01]
[1729728094618,3.96322,2523.2,2522.8,0.01]
[1729728094826,3.96322,2523.2,2522.8,3.97382]
[1729728095130,3.96322,2523.2,2522.8,5.08989492]
[1729728096191,3.963,2523.4,2522.9,0.01]
[1729728096394,1.5421,2523.7,2523.3,0.01]
[1729728096580,3.9629,2523.4,2523.1,0.01]
[1729728100384,7.92588,2523.4,2523.1,0.01]
[1729728100655,3.9629,2523.4,2523.1,0.01]
[1729728101290,3.96321,2523.3,2523.1,0.01]
[1729728101589,3.96369,2522.9,2522.6,0.00781117]
[1729728101804,5.50579,2522.9,2522.6,0.01781117]
[1729728102003,3.96384,2522.8,2522.6,0.01781117]
[1729728102235,3.964,2522.7,2522.6,0.00781117]
[1729728103140,11.58930759,2522.7,2522.6,0.00781117]
[1729728103295,13.13140759,2522.7,2522.6,0.00781117]
[1729728104829,13.68140759,2522.7,2522.6,1.17e-06]
[1729728105033,3.96527,2521.9,2521.5,0.02270698]
[1729728105189,3.96489,2522.2,2521.6,1.5529]
[1729728105385,3.96489,2522.2,2521.8,0.01]
[1729728106391,3.96452,2522.4,2521.8,0.02]
[1729728106591,3.96452,2522.4,2522.0,0.01]
[1729728106832,3.96436,2522.5,2522.1,1.5529]
[1729728107129,3.96456,2522.4,2522.1,1.5529]
[1729728107525,3.96436,2522.5,2522.1,1.5529]
[1729728107690,3.96436,2522.5,2522.1,1.5629]
[1729728108101,7.92881,2522.5,2522.1,1.5629]
[1729728108721,8.50585,2522.9,2522.1,1.5629]
[1729728108722,3.96408,2522.7,2522.4,0.01]
[1729728109595,6.96386,2522.8,2522.4,0.01]
[1729728109904,3.9638,2522.9,2522.4,0.01]
[1729728110135,3.96386,2522.8,2522.4,0.01]
[1729728110485,3.9638,2522.9,2522.4,0.01]
[1729728110689,7.92754,2522.9,2522.6,0.01]
[1729728110924,3.96377,2522.9,2522.6,0.01]
[1729728111607,7.92756,2522.9,2522.6,0.01]
[1729728111803,3.96377,2522.9,2522.6,0.01]
[1729728112018,7.92759,2522.9,2522.6,0.01]
[1729728112335,3.96377,2522.9,2522.6,0.01]
[1729728112625,3.96386,2522.8,2522.6,0.01]
[1729728112838,3.96377,2522.9,2522.6,0.01]
[1729728113926,3.96377,2522.9,2522.6,1.5291]
[1729728114135,3.96377,2522.9,2522.6,1.7625025]
[1729728117056,7.92754,2522.9,2522.6,1.7625025]
[1729728117253,3.96385,2522.8,2522.6,1.5291]
[1729728117551,3.96385,2522.8,2522.6,0.01]
[1729728118721,3.96372,2522.9,2522.6,0.01]
[1729728119747,3.96354,2523.0,2522.6,0.01]
[1729728119950,7.92717,2523.0,2522.6,0.01]
[1729728120251,3.96372,2522.9,2522.6,0.01]
[1729728120440,3.96354,2523.0,2522.6,0.01]
[1729728120751,3.96282,2523.5,2523.0,0.02]
[1729728121424,3.96291,2523.4,2523.0,0.02]
[1729728122919,3.96275,2523.5,2523.0,3.98345]
[1729728123762,3.96293,2523.4,2523.0,0.02]
[1729728124279,3.96293,2523.4,2523.0,0.96665]
[1729728125200,3.96317,2523.3,2523.0,0.96665]
[1729728125350,3.96317,2523.3,2523.0,0.02]
[1729728127387,3.96293,2523.4,2523.0,0.01]
[1729728127583,1.5679,2523.6,2523.0,0.01]
[1729728127764,7.92637,2523.3,2523.0,0.01]
[1729728128583,3.96327,2523.2,2523.0,0.01]
[1729728128775,3.96327,2523.2,2523.1,0.01]
[1729728129650,7.92725,2523.0,2522.8,0.01]
[1729728129850,3.96396,2522.8,2522.6,19.97]
[1729728130050,3.96396,2522.8,2522.6,0.01]
[1729728130765,1.5679,2523.1,2522.5,0.01]
[1729728130766,3.96408,2522.7,2522.5,0.01]
[1729728133501,3.96385,2522.8,2522.5,0.01]
[1729728134491,3.96376,2522.9,2522.5,0.01]
[1729728134794,3.96348,2523.1,2522.7,1.5523]
[1729728135583,5.53108,2523.3,2522.8,0.01]
[1729728135818,3.96323,2523.2,2522.8,0.01]
[1729728136091,3.96334,2523.2,2522.8,0.01]
[1729728136295,3.96341,2523.1,2522.8,0.01]
[1729728137459,3.96323,2523.2,2522.8,0.01]
[1729728137791,3.96323,2523.2,2522.8,0.62590763]
[1729728138581,3.9637,2522.9,2522.6,0.07927328]
[1729728138890,3.96395,2522.8,2522.4,3.97447]
[1729728139096,7.92793,2522.8,2522.4,0.01]
[1729728139257,3.964,2522.7,2522.4,2.956159]
[1729728141492,3.96417,2522.6,2522.4,0.01]
[1729728142393,3.96447,2522.4,2522.3,0.01]
[1729728142694,3.96447,2522.4,2522.1,1.5623]
[1729728142895,3.96463,2522.3,2522.1,0.01]
[1729728143828,3.96463,2522.3,2522.2,0.01]
[1729728144115,7.92937,2522.3,2522.1,0.01]
[1729728144423,3.96447,2522.4,2522.0,1.5191]
[1729728144594,3.96491,2522.2,2522.0,0.01]
[1729728144793,3.96494,2522.1,2521.9,0.01]
[1729728144992,3.96494,2522.1,2521.7,0.01]
[1729728144993,3.9651,2522.0,2521.7,0.01]
[1729728146289,3.96494,2522.1,2521.7,0.01]
[1729728146508,3.96494,2522.1,2521.7,4.9229107]
[1729728146714,3.96494,2522.1,2521.7,0.9573407]
[1729728147505,7.92998,2522.1,2521.7,0.9573407]
[1729728147702,3.96494,2522.1,2521.7,0.01]
[1729728148016,3.96522,2522.0,2521.7,0.01]
[1729728151913,3.96455,2522.4,2521.9,0.01]
[1729728152097,3.96455,2522.4,2522.1,0.01]
[1729728152834,1.5291,2522.7,2522.4,1.5091]
[1729728152835,3.96402,2522.7,2522.4,1.5091]
[1729728153127,3.96417,2522.6,2522.4,1.5091]
[1729728154323,1.5291,2523.0,2522.4,1.5091]
[1729728154324,3.9637,2522.9,2522.5,0.01]
[1729728154616,3.9637,2522.9,2522.5,0.02]
[1729728154830,3.96365,2523.0,2522.5,0.02]
[1729728155019,4.360015,2523.0,2522.5,0.02]
[1729728155329,7.92781,2522.8,2522.5,0.01]
[1729728155536,3.96386,2522.8,2522.6,0.01]
[1729728156229,3.9637,2522.9,2522.6,0.01]
[1729728156432,3.96359,2523.0,2522.6,0.01]
[1729728156731,4.512859,2523.0,2522.6,0.01]
[1729728157408,3.96382,2522.9,2522.6,0.01]
[1729728157727,4.512859,2523.0,2522.6,0.01]
[1729728157891,3.96359,2523.0,2522.6,0.01]
[1729728158221,3.96385,2522.8,2522.6,0.01]
[1729728158727,3.96385,2522.8,2522.5,0.01]
[1729728159040,3.96385,2522.8,2522.4,1.5191]
[1729728159041,3.96424,2522.6,2522.4,1.5191]
[1729728159234,7.9285,2522.6,2522.4,0.01]
[1729728159531,3.96432,2522.5,2522.2,1.6744]
[1729728159696,3.96432,2522.5,2522.2,4.3299204]
[1729728160134,3.96397,2522.8,2522.2,4.3299204]
[1729728160335,3.96415,2522.7,2522.3,0.01]
[1729728160894,3.96428,2522.6,2522.3,0.01]
[1729728161099,7.92856,2522.6,2522.3,0.01]
[1729728161299,3.96428,2522.6,2522.3,0.01]
[1729728162141,3.96428,2522.6,2522.2,1.6744]
[1729728162641,3.96428,2522.6,2522.3,0.01]
[1729728162936,3.96432,2522.5,2522.3,0.01]
[1729728165546,3.96447,2522.4,2522.2,1.6644]
[1729728165716,3.96471,2522.3,2522.2,0.01]
[1729728167551,3.96449,2522.4,2522.2,0.01]
[1729728167712,3.96435,2522.5,2522.2,0.01]
[1729728168747,3.96449,2522.4,2522.2,0.01]
[1729728171312,4.757366,2522.4,2522.2,0.01]
[1729728173215,3.96449,2522.4,2522.2,0.01]
[1729728173727,3.9647,2522.3,2521.8,5.52502]
[1729728173928,3.96479,2522.2,2521.9,0.24802766]
[1729728174123,3.96492,2522.2,2521.8,1.5597]
[1729728175065,3.96512,2522.0,2521.6,0.01]
[1729728175219,3.96512,2522.0,2521.5,0.02270698]
[1729728175220,3.96573,2521.6,2521.5,0.01270698]
[1729728176118,5.57779,2521.9,2521.5,0.01270698]
[1729728176318,3.96573,2521.6,2521.5,0.01270698]
[1729728176629,3.96558,2521.7,2521.5,0.01270698]
[1729728177030,3.96573,2521.6,2521.5,0.01270698]
[1729728177822,3.96558,2521.7,2521.5,0.01270698]
[1729728178955,3.96558,2521.7,2521.6,0.03496457]
[1729728179255,4.919916,2521.7,2521.6,0.03496457]
[1729728182560,1.6124,2521.9,2521.6,0.03496457]
[1729728182561,3.96526,2521.9,2521.6,1.57466457]
[1729728182895,3.96504,2522.1,2521.6,5.55029457]
[1729728185056,3.96513,2522.0,2521.6,1.58466457]
[1729728185913,3.96479,2522.2,2521.6,2.55093036]
[1729728186098,3.96479,2522.2,2521.8,0.01]
[1729728186297,3.9647,2522.3,2521.8,3.97539]
[1729728186604,3.9647,2522.3,2521.9,1.5397]
[1729728186900,3.96479,2522.2,2521.8,3.9654]
[1729728187210,3.96501,2522.1,2521.8,0.01]
[1729728187712,3.96487,2522.2,2521.9,0.01]
[1729728188485,3.96464,2522.3,2521.9,0.01]
[1729728188696,3.9648,2522.2,2521.9,0.01]
[1729728189873,3.9648,2522.2,2522.0,0.00643779]
[1729728190777,3.96494,2522.1,2522.0,0.00643779]
[1729728191691,3.96494,2522.1,2521.9,0.01]
[1729728191887,3.96494,2522.1,2521.8,0.01]
[1729728192088,3.96517,2522.0,2521.7,1.5497]
[1729728192592,3.96517,2522.0,2521.8,0.01]
[1729728192778,3.96517,2522.0,2521.7,1.5497]
[1729728193388,3.96517,2522.0,2521.8,0.01]
[1729728193998,3.96481,2522.2,2521.8,0.01]
[1729728194318,7.92973,2522.2,2521.8,0.01]
[1729728194484,3.96496,2522.1,2521.8,0.01]
[1729728194685,3.9648,2522.2,2521.9,0.01]
[1729728198479,3.96458,2522.4,2522.1,0.01]
[1729728199630,3.96465,2522.3,2522.1,0.01]
[1729728200129,3.96479,2522.2,2522.1,0.01]
[1729728200298,4.361269,2522.2,2522.1,0.01]
[1729728200485,3.96479,2522.2,2522.1,0.01]
[1729728200689,3.96479,2522.2,2521.8,0.24803171]
[1729728200690,3.96526,2521.9,2521.8,1.5337]
[1729728200889,3.96526,2521.9,2521.8,1.77174219]
[1729728201491,3.96526,2521.9,2521.8,0.01]
[1729728202253,3.96521,2522.0,2521.6,1.5337]
[1729728202454,3.96494,2522.1,2521.8,0.01]
[1729728202752,3.96464,2522.3,2522.1,0.01]
[1729728202908,3.96448,2522.4,2522.1,0.01]
[1729728203113,3.96425,2522.6,2522.2,1.5169]
[1729728203523,3.96443,2522.5,2522.2,1.5169]
[1729728206354,3.96425,2522.6,2522.2,1.5169]
[1729728207049,7.92855,2522.6,2522.2,2.07400423]
[1729728207252,3.96434,2522.5,2522.3,0.01]
[1729728207960,3.96447,2522.4,2522.3,0.01]
[1729728208139,3.96377,2522.9,2522.3,0.01]
[1729728208451,3.96434,2522.5,2522.3,0.01]
[1729728209927,3.96413,2522.7,2522.3,0.01]
[1729728210129,3.96413,2522.7,2522.3,0.559181]
[1729728210470,3.96412,2522.7,2522.5,0.01]
[1729728211458,7.92825,2522.7,2522.5,0.01]
[1729728211630,3.96412,2522.7,2522.5,0.01]
[1729728212341,3.96391,2522.8,2522.5,1.5169]
[1729728212539,3.96391,2522.8,2522.5,2.1209691]
[1729728213457,3.96391,2522.8,2522.5,1.5169]
[1729728213847,7.92786,2522.8,2522.5,1.5169]
[1729728214049,3.96403,2522.7,2522.5,1.5169]
[1729728215020,3.96386,2522.8,2522.5,1.5169]
[1729728215423,3.9637,2522.9,2522.5,1.5169]
[1729728215659,3.9637,2522.9,2522.5,2.1209621]
[1729728216263,3.9637,2522.9,2522.6,0.01]
[1729728216438,7.92748,2522.9,2522.6,0.01]
[1729728216637,3.96393,2522.8,2522.6,0.01]
[1729728217781,3.9566571,2522.8,2522.6,0.01]
[1729728218268,3.9637,2522.9,2522.6,0.01]
[1729728219667,7.92752,2522.9,2522.6,0.01]
[1729728220348,3.9637,2522.9,2522.6,0.01]
[1729728221398,3.96349,2523.1,2522.9,1.5069]
[1729728221605,3.96353,2523.0,2522.9,1.5069]
[1729728222089,3.96353,2523.0,2522.8,0.01]
[1729728224965,3.96349,2523.1,2522.8,0.01]
[1729728225296,3.96369,2522.9,2522.8,0.01]
[1729728225874,3.96355,2523.0,2522.8,0.01]
[1729728227586,3.96369,2522.9,2522.8,0.01]
[1729728229396,3.96355,2523.0,2522.8,0.01]
[1729728231665,7.92722,2523.0,2522.8,0.01]
[1729728231864,3.96355,2523.0,2522.8,0.01]
[1729728233001,3.96369,2522.9,2522.8,0.01]
[1729728233171,3.9639,2522.8,2522.6,0.01]
[1729728233381,3.9639,2522.8,2522.5,0.01]
[1729728233909,3.96413,2522.7,2522.4,0.01]
[1729728234078,3.96413,2522.7,2522.5,0.01]
[1729728234276,3.96413,2522.7,2522.6,0.01]
[1729728236053,3.9639,2522.8,2522.6,0.01]
[1729728236199,3.964,2522.7,2522.6,0.01]
[1729728236884,3.96386,2522.8,2522.6,0.01]
[1729728239003,3.964,2522.7,2522.6,0.01]
[1729728239161,3.964,2522.7,2522.5,0.01]
[1729728240713,3.964,2522.7,2522.3,0.01]
[1729728240714,1.5789,2522.5,2522.3,0.01]
[1729728240884,3.96473,2522.3,2522.0,0.07319793]
[1729728241218,3.96479,2522.2,2522.1,0.24801404]
[1729728241911,5.77665182,2522.2,2522.1,0.24801404]
[1729728242116,4.93891818,2522.2,2522.0,0.01]
[1729728242271,5.54369,2522.2,2521.9,0.01]
[1729728242701,3.96502,2522.1,2521.9,0.01]
[1729728242910,3.96502,2522.1,2521.8,0.01]
[1729728243078,3.96521,2522.0,2521.8,0.01]
[1729728243276,3.9651,2522.0,2521.7,0.01]
[1729728243591,5.54443,2521.8,2521.5,0.02270698]
[1729728243896,3.96557,2521.7,2521.6,0.24807187]
[1729728244104,3.96557,2521.7,2521.5,0.02270698]
[1729728245587,3.96573,2521.6,2521.5,0.02270698]
[1729728246078,3.96573,2521.6,2521.5,0.01270698]
[1729728246620,3.96557,2521.7,2521.5,0.01270698]
[1729728247113,3.96573,2521.6,2521.5,0.02270698]
[1729728249096,3.96558,2521.7,2521.5,0.02270698]
[1729728249299,3.96522,2522.0,2521.5,1.8345688]
[1729728249545,3.0,2522.4,2521.8,1.82186182]
[1729728249546,3.96488,2522.2,2521.8,1.82186182]
[1729728250300,7.92982,2522.2,2521.8,0.01]
[1729728251082,3.96498,2522.1,2521.8,0.01]
[1729728254536,3.96521,2522.0,2521.8,0.01]
[1729728260129,3.96498,2522.1,2521.8,0.01]
[1729728261064,7.93007,2522.1,2521.8,0.01]
[1729728261961,3.96513,2522.0,2521.8,0.01]
[1729728262479,1.6592,2522.4,2521.5,0.27076728]
[1729728262697,1.6592,2521.8,2521.5,0.02270698]
[1729728262850,5.62469,2521.8,2521.5,0.02270698]
[1729728263049,3.96549,2521.8,2521.7,0.01]
[1729728263688,3.96549,2521.8,2521.5,0.01270698]
[1729728263689,3.96549,2521.8,2521.5,0.02270698]
[1729728263873,3.96559,2521.7,2521.5,0.02270698]
[1729728264554,7.93079,2521.9,2521.7,0.01]
[1729728264756,3.96538,2521.9,2521.7,0.01]
[1729728266060,7.93073,2521.9,2521.7,0.01]
[1729728266279,7.93007,2522.1,2521.7,0.02]
[1729728266601,3.96499,2522.1,2521.8,1.5668]
[1729728266748,3.96499,2522.1,2521.8,1.60146738]
[1729728267490,3.96512,2522.0,2521.8,1.60146738]
[1729728267658,3.96499,2522.1,2521.8,1.60146738]
[1729728267846,7.93003,2522.1,2521.8,1.60146738]
[1729728268843,5.57525,2522.4,2521.9,0.02]
[1729728269087,3.96442,2522.5,2522.2,1.5768]
[1729728269689,3.96449,2522.4,2522.2,1.5768]
[1729728270587,1.81252186,2522.7,2522.2,1.5768]
[1729728270588,3.9641,2522.7,2522.3,1.85742125]
[1729728270790,7.92819,2522.7,2522.5,0.01]
[1729728270947,3.96409,2522.7,2522.5,0.01]
[1729728272375,3.96409,2522.7,2522.6,1.5668]
[1729728272791,3.96374,2522.9,2522.6,1.5768]
[1729728275095,3.96367,2523.0,2522.8,0.01]
[1729728275682,7.9273,2523.0,2522.8,0.01]
[1729728275986,3.96363,2523.0,2522.8,0.01]
[1729728279764,7.92731,2523.0,2522.8,0.01]
[1729728280219,7.92726,2523.0,2522.8,0.01]
[1729728280504,3.96363,2523.0,2522.8,0.01]